bitfinex/quotes_ETHUSD_20230116
["timestamp","ask_amount","ask_price","bid_price","bid_amount"]
[1673882410596,0.9542142,1535.5,1535.2,0.09726373]
[1673882410765,7.4667542,1535.5,1535.2,0.09726373]
[1673882410926,8.9633405,1535.5,1535.2,0.09726373]
[1673882411360,2.3828005,1535.4,1535.2,0.09726373]
[1673882411577,13.9809742,1535.3,1535.2,0.09726373]
[1673882411783,7.5355942,1535.3,1535.2,0.09726373]
[1673882412230,7.5355942,1535.3,1535.2,1.05726373]
[1673882412413,0.068,1535.3,1535.2,2.00226373]
[1673882412629,0.95479693,1535.4,1535.2,2.00226373]
[1673882413060,1.4965863,1535.5,1535.3,3.27278678]
[1673882413271,0.95559704,1535.5,1535.4,6.51296]
[1673882413606,0.95559704,1535.5,1535.4,1.00074927]
[1673882413775,0.95559704,1535.5,1535.2,6.61072373]
[1673882413970,0.95559704,1535.4,1535.2,3.42579978]
[1673882414175,2.38418334,1535.4,1535.2,0.09726373]
[1673882414614,0.95559704,1535.4,1535.2,0.09726373]
[1673882414861,0.95559704,1535.3,1535.2,0.09726373]
[1673882415073,14.4553463,1535.3,1535.2,0.09726373]
[1673882415263,8.0099663,1535.3,1535.2,0.09726373]
[1673882415476,1.4965863,1535.3,1535.2,0.09726373]
[1673882415703,24.6364931,1535.3,1535.2,0.08445558]
[1673882415880,22.79153911,1535.3,1535.2,0.08445558]
[1673882416440,11.61838,1535.3,1535.2,0.08445558]
[1673882416767,13.61838,1535.3,1535.2,0.08445558]
[1673882416966,18.13176,1535.3,1535.2,0.08445558]
[1673882417335,21.40454678,1535.3,1535.2,0.08445558]
[1673882418645,24.26969857,1535.3,1535.2,0.08445558]
[1673882418819,21.89344678,1535.3,1535.2,0.08445558]
[1673882419497,24.76606914,1535.3,1535.2,0.08445558]
[1673882419804,28.40682678,1535.3,1535.2,0.08445558]
[1673882420018,9.94300112,1535.3,1535.2,0.08445558]
[1673882420329,8.49697202,1535.3,1535.2,0.08445558]
[1673882420923,10.89161991,1535.3,1535.2,0.08445558]
[1673882421128,4.37823991,1535.3,1535.2,0.08445558]
[1673882421346,17.33699991,1535.3,1535.2,0.08445558]
[1673882421555,10.89161991,1535.3,1535.2,0.08445558]
[1673882421744,1.98359202,1535.3,1535.2,0.08445558]
[1673882422000,2.94173026,1535.4,1535.2,1.02945558]
[1673882422184,2.39532324,1535.4,1535.2,1.02945558]
[1673882422390,0.95813824,1535.4,1535.2,1.02945558]
[1673882422604,0.95813824,1535.4,1535.2,7.54315558]
[1673882422839,0.95813824,1535.4,1535.2,7.59890485]
[1673882423073,0.95813824,1535.4,1535.3,3.27278678]
[1673882423217,3.42028009,1535.5,1535.3,3.27278678]
[1673882423218,2.46282631,1535.5,1535.4,6.51296]
[1673882423431,2.39482631,1535.5,1535.4,0.05574927]
[1673882423638,1.43668807,1535.5,1535.2,0.57335558]
[1673882423852,0.9579164,1535.4,1535.3,3.27278678]
[1673882424178,0.9579164,1535.4,1535.3,9.78616678]
[1673882424410,0.95393867,1535.4,1535.3,9.84191605]
[1673882424599,0.95393867,1535.4,1535.3,0.05574927]
[1673882424810,2.39062674,1535.4,1535.2,0.62910485]
[1673882425020,1.43668807,1535.4,1535.2,0.08445558]
[1673882425351,3.35264849,1535.4,1535.2,0.08445558]
[1673882425562,1.43759343,1535.3,1535.2,0.08445558]
[1673882425947,9.86693385,1535.3,1535.2,0.08445558]
[1673882426162,17.40588659,1535.3,1535.2,0.07301602]
[1673882426486,15.48992617,1535.3,1535.2,0.07301602]
[1673882426920,15.62066,1535.3,1535.2,0.07301602]
[1673882427124,21.89344678,1535.3,1535.2,0.07301602]
[1673882427342,21.4941643,1535.3,1535.2,0.03788067]
[1673882427547,14.9807843,1535.3,1535.2,0.03788067]
[1673882427788,9.9437843,1535.3,1535.2,0.03788067]
[1673882427961,1.028,1535.3,1535.2,0.03788067]
[1673882428191,13.14151333,1535.3,1535.2,0.03788067]
[1673882428485,17.32754678,1535.3,1535.2,0.03788067]
[1673882428697,1.028,1535.3,1535.2,0.03788067]
[1673882428908,0.96,1535.3,1535.2,0.03788067]
[1673882429113,1.91616003,1535.3,1535.2,0.98288067]
[1673882429328,3.35326605,1535.3,1535.2,0.98288067]
[1673882429575,1.91616003,1535.3,1535.2,0.98288067]
[1673882429996,1.91816003,1535.3,1535.2,7.49668067]
[1673882430151,1.91816003,1535.3,1535.2,7.55242994]
[1673882430152,1.4370114,1535.3,1535.2,7.55242994]
[1673882430361,1.4370114,1535.3,1535.2,9.61091093]
[1673882430992,1.4370114,1535.3,1535.2,16.12471093]
[1673882431202,1.4370114,1535.3,1535.2,9.61091093]
[1673882431848,1.4370114,1535.3,1535.2,19.39749771]
[1673882432076,1.4370114,1535.3,1535.2,22.39749771]
[1673882432287,1.4370114,1535.4,1535.2,22.39749771]
[1673882432501,1.4370114,1535.4,1535.3,3.27278678]
[1673882432729,0.52046721,1535.3,1535.2,3.05974927]
[1673882432958,1.95747861,1535.3,1535.1,6.57370927]
[1673882433112,1.95747861,1535.3,1535.1,0.05574927]
[1673882433363,1.95747861,1535.3,1535.0,0.05574927]
[1673882433573,3.87363864,1535.3,1535.0,3.0]
[1673882433783,3.87363864,1535.3,1535.0,9.51454]
[1673882434022,3.87363864,1535.3,1535.0,9.57028927]
[1673882434192,1.4370114,1535.2,1535.0,9.57028927]
[1673882434402,0.95843179,1535.1,1535.0,3.05574927]
[1673882434661,0.95843179,1535.1,1535.0,3.0]
[1673882435906,4.89980395,1535.3,1535.0,11.04020471]
[1673882435907,0.58846721,1535.3,1535.0,11.04020471]
[1673882436116,0.15506721,1535.3,1535.2,19.5414]
[1673882436307,0.15506721,1535.3,1535.2,23.09993605]
[1673882436533,0.15506721,1535.3,1535.2,23.58883605]
[1673882436714,0.15506721,1535.3,1535.2,27.23517523]
[1673882436924,0.15506721,1535.3,1535.2,30.61048975]
[1673882437972,6.721e-05,1535.3,1535.2,30.61048975]
[1673882439200,2.23376429,1535.6,1535.3,2.0]
[1673882439514,2.23376429,1535.6,1535.4,22.81166678]
[1673882439515,0.95830604,1535.6,1535.4,22.81166678]
[1673882439656,0.95830604,1535.6,1535.4,22.86741605]
[1673882439873,0.95830604,1535.6,1535.4,25.65455765]
[1673882440082,4.39174256,1535.7,1535.4,0.05574927]
[1673882440281,1.9167237,1535.6,1535.3,3.0]
[1673882440532,0.95753205,1535.4,1535.2,0.05974927]
[1673882440728,0.95747234,1535.3,1535.1,0.05574927]
[1673882440935,0.95747234,1535.4,1535.2,16.30038678]
[1673882441235,0.95762847,1535.5,1535.3,11.41579546]
[1673882441449,0.95762847,1535.5,1535.4,3.27278678]
[1673882441659,0.95762847,1535.5,1535.4,9.78574678]
[1673882441919,0.95762847,1535.5,1535.4,3.05574927]
[1673882442087,0.95762847,1535.5,1535.3,0.05974927]
[1673882442298,0.95762847,1535.4,1535.2,0.05574927]
[1673882442510,0.95762847,1535.4,1535.0,13.08444927]
[1673882442748,0.95762847,1535.4,1535.0,15.0449922]
[1673882442932,0.95762847,1535.4,1535.0,18.31777898]
[1673882443145,4.37669829,1535.6,1535.1,3.27278678]
[1673882443363,4.37669829,1535.6,1535.2,22.81355678]
[1673882443364,0.95753339,1535.4,1535.2,22.81355678]
[1673882443552,0.95753339,1535.4,1535.2,9.84212605]
[1673882443763,0.95753339,1535.4,1535.2,0.05574927]
[1673882444013,0.95753339,1535.4,1535.2,6.51377]
[1673882444197,0.95753339,1535.4,1535.2,6.56951927]
[1673882444570,0.95753339,1535.3,1535.2,0.05574927]
[1673882444704,8.42842865,1535.3,1535.2,0.01]
[1673882444916,8.42842865,1535.3,1534.8,30.36574927]
[1673882444917,0.002,1535.1,1534.8,30.36574927]
[1673882445175,0.95937443,1535.1,1534.8,0.05574927]
[1673882445336,0.95737443,1535.0,1534.6,0.05574927]
[1673882445551,0.95737443,1535.0,1534.5,36.88221927]
[1673882445759,0.95737443,1535.0,1534.5,44.55827085]
[1673882445994,0.95737443,1535.0,1534.5,38.04180085]
[1673882446282,7.47219443,1535.0,1534.5,33.63853605]
[1673882446550,7.54019443,1535.0,1534.5,33.63853605]
[1673882446735,8.02919443,1535.0,1534.5,33.63853605]
[1673882446912,0.95737443,1534.9,1534.5,33.63853605]
[1673882447123,0.95737443,1534.9,1534.5,3.32853605]
[1673882447385,0.95737443,1534.9,1534.5,3.27278678]
[1673882447598,0.95737443,1534.9,1534.5,1.04789548]
[1673882447789,0.95737443,1534.9,1534.5,14.08141548]
[1673882448119,0.95737443,1534.9,1534.5,7.62038475]
[1673882449590,0.95737443,1534.9,1534.5,14.13716475]
[1673882449816,0.95737443,1534.9,1534.5,17.40995153]
[1673882450027,0.95737443,1534.9,1534.6,1.74099515]
[1673882450239,0.95737443,1534.9,1534.6,8.25714515]
[1673882450468,2.39281601,1535.0,1534.6,24.6183812]
[1673882450636,2.39281601,1535.0,1534.6,8.31289442]
[1673882451057,2.39281601,1535.0,1534.7,3.27278678]
[1673882451313,0.95737443,1535.0,1534.7,16.30427678]
[1673882451532,0.95737443,1535.0,1534.7,16.36002605]
[1673882451685,0.95737443,1535.0,1534.7,13.08723927]
[1673882451905,0.9565324,1534.9,1534.7,0.05574927]
[1673882452123,7.4716724,1534.9,1534.5,13.08878927]
[1673882452334,1.0245324,1534.9,1534.5,12.23359076]
[1673882452595,0.9565324,1534.9,1534.5,18.75037076]
[1673882453121,0.9565324,1534.9,1534.6,3.27278678]
[1673882453288,1.0245324,1535.0,1534.8,6.5155]
[1673882453501,0.9565324,1535.0,1534.8,6.57124927]
[1673882453718,1.43744158,1535.1,1534.8,15.2473782]
[1673882453719,2.39397398,1535.1,1534.8,15.2473782]
[1673882455278,2.39397398,1535.1,1534.8,15.24951911]
[1673882455641,0.9585324,1535.1,1534.8,25.03780589]
[1673882456067,0.002,1535.1,1534.8,25.03780589]
[1673882456223,0.002,1535.1,1534.9,2.0]
[1673882456432,0.002,1535.1,1535.0,6.51465]
[1673882456686,0.002,1535.1,1535.0,6.57039927]
[1673882456904,0.002,1535.1,1535.0,13.08504927]
[1673882458444,2.39351038,1535.1,1535.0,0.05574927]
[1673882458653,0.9585324,1535.1,1534.9,6.51506]
[1673882458863,0.9585324,1535.1,1535.0,6.51465]
[1673882459076,0.9585324,1535.1,1535.0,6.57039927]
[1673882459595,0.002,1535.1,1535.0,6.57039927]
[1673882459807,0.002,1535.1,1535.0,13.08272097]
[1673882460455,0.002,1535.1,1535.0,1.96074927]
[1673882460672,0.002,1535.1,1535.0,0.41192375]
[1673882460906,0.002,1535.1,1534.9,16.03166077]
[1673882461102,0.002,1535.1,1535.0,2.0]
[1673882462149,0.002,1535.1,1534.9,19.36419682]
[1673882462361,7.4727624,1535.1,1534.9,3.05789004]
[1673882462580,7.5407624,1535.1,1534.9,0.00214077]
[1673882462955,8.97560956,1535.1,1534.9,0.00214077]
[1673882464050,0.24980783,1536.0,1535.6,3.27278678]
[1673882464271,0.09237967,1536.1,1535.9,3.27278678]
[1673882464414,1.73407242,1536.1,1536.0,0.23]
[1673882464622,0.95729285,1536.1,1536.0,6.51033]
[1673882464833,0.95729285,1536.1,1536.0,2.05974927]
[1673882465042,1.61749322,1536.3,1535.9,9.84296605]
[1673882465308,3.46665473,1536.3,1535.9,0.05974927]
[1673882465518,0.95742237,1536.0,1535.8,6.57066927]
[1673882465725,0.95742237,1536.1,1535.8,3.33253605]
[1673882465943,0.95742237,1536.1,1535.8,3.27278678]
[1673882466251,0.95742237,1536.1,1535.7,19.57138927]
[1673882466424,0.95742237,1536.1,1535.7,22.84417605]
[1673882466846,0.95742237,1536.1,1535.7,16.08306927]
[1673882467108,0.95742237,1536.0,1535.7,0.05974927]
[1673882467250,1.44674224,1536.1,1535.6,0.05974927]
[1673882467251,0.9564519,1535.9,1535.6,0.05974927]
[1673882467462,0.95636535,1535.9,1535.4,0.05974927]
[1673882467704,1.05200188,1535.8,1535.3,6.57296927]
[1673882467924,0.95636535,1535.7,1535.3,6.57296927]
[1673882468124,0.95636535,1535.7,1535.3,0.05974927]
[1673882468335,0.95636535,1535.7,1535.2,6.57322927]
[1673882468780,0.95636535,1535.7,1535.2,0.05974927]
[1673882469104,1.85479554,1535.7,1535.2,15.0274]
[1673882469249,0.95636535,1535.7,1535.2,15.08514927]
[1673882469467,0.95636535,1535.7,1535.2,15.08714927]
[1673882470633,1.54070188,1535.8,1535.4,6.51287]
[1673882470843,0.95636535,1535.8,1535.4,13.07357927]
[1673882471060,0.95636535,1535.8,1535.4,13.08557927]
[1673882471351,0.95636535,1535.8,1535.4,16.35836605]
[1673882471601,0.95636535,1535.9,1535.5,3.27278678]
[1673882471816,0.95636535,1535.9,1535.6,22.80884678]
[1673882472032,0.95636535,1535.9,1535.6,22.86859605]
[1673882472346,0.95636535,1536.0,1535.6,22.86859605]
[1673882472665,4.36667435,1536.1,1535.6,23.35739605]
[1673882472666,1.51096535,1536.1,1535.6,23.35739605]
[1673882472883,0.95636535,1536.1,1535.6,25.66791932]
[1673882473054,2.38982888,1536.1,1535.7,3.27278678]
[1673882473402,0.95636535,1536.1,1535.8,23.03629678]
[1673882473555,0.95636535,1536.1,1536.0,6.51041]
[1673882473767,2.38982888,1536.2,1536.0,6.57015927]
[1673882473974,2.38982888,1536.2,1536.0,16.35335605]
[1673882474232,2.38982888,1536.2,1536.0,18.63973465]
[1673882474233,0.95636535,1536.2,1536.0,18.63973465]
[1673882474959,0.95636535,1536.2,1536.0,13.08056927]
[1673882475443,0.95636535,1536.2,1536.0,16.35335605]
[1673882475658,0.94492768,1536.3,1536.0,13.08056927]
[1673882476516,0.94492768,1536.3,1536.0,19.59097927]
[1673882476728,0.94492768,1536.3,1536.0,22.86376605]
[1673882476938,0.94492768,1536.3,1536.0,25.93618565]
[1673882477151,0.94492768,1536.3,1536.1,3.27278678]
[1673882477360,0.94492768,1536.3,1536.2,22.80146678]
[1673882477602,0.08856233,1536.3,1536.2,22.86121605]
[1673882477810,1.04856233,1536.3,1536.2,0.05974927]
[1673882478041,0.08856233,1536.3,1536.1,13.07926927]
[1673882478198,0.08856233,1536.3,1536.2,13.01912]
[1673882478385,0.08856233,1536.3,1536.2,19.58842927]
[1673882478628,0.08856233,1536.3,1536.2,22.86121605]
[1673882479043,1.04856233,1536.3,1536.2,19.58842927]
[1673882479318,0.08856233,1536.3,1536.2,19.58842927]
[1673882479502,0.08856233,1536.3,1536.2,6.56930927]
[1673882479736,0.08856233,1536.3,1536.2,19.56842927]
[1673882480891,1.04856233,1536.3,1536.2,0.05974927]
[1673882481048,1.04856233,1536.3,1536.2,13.01912]
[1673882481049,0.08856233,1536.3,1536.2,13.01912]
[1673882481255,0.08856233,1536.3,1536.2,19.58842927]
[1673882481591,0.08856233,1536.3,1536.2,22.1982362]
[1673882481805,0.08856233,1536.3,1536.2,19.58842927]
[1673882482469,0.08856233,1536.3,1536.2,6.56930927]
[1673882483156,0.08856233,1536.3,1536.2,13.07886927]
[1673882483365,0.08856233,1536.3,1536.2,19.58842927]
[1673882483606,0.08856233,1536.3,1536.2,13.07886927]
[1673882484767,1.04856233,1536.3,1536.2,0.05974927]
[1673882484942,14.06684233,1536.3,1536.0,0.06281166]
[1673882485306,14.06684233,1536.3,1535.9,22.59169927]
[1673882485307,7.62370233,1536.3,1535.9,22.59169927]
[1673882485829,0.15456233,1536.3,1536.0,3.27278678]
[1673882486079,13.10686233,1536.3,1535.9,15.23732598]
[1673882486196,0.15456233,1536.3,1535.9,21.74816598]
[1673882486409,0.08856233,1536.3,1535.9,28.25900598]
[1673882486756,0.08856233,1536.3,1535.9,0.05974927]
[1673882486970,19.61611233,1536.3,1535.8,6.57079927]
[1673882487306,19.68211233,1536.3,1535.8,0.05974927]
[1673882487456,24.39584135,1536.3,1535.7,0.05974927]
[1673882487773,1.354,1536.0,1535.6,0.05974927]
[1673882487982,28.08902,1536.2,1535.7,3.27278678]
[1673882488661,29.04136224,1536.2,1535.7,3.27278678]
[1673882488825,40.17596902,1536.2,1535.6,0.05974927]
[1673882489036,40.17596902,1536.2,1535.4,7.92236927]
[1673882489299,40.17596902,1536.2,1535.4,11.84515605]
[1673882489300,1.354,1536.1,1535.4,11.84515605]
[1673882489523,13.15664,1536.0,1535.4,3.33253605]
[1673882489675,1.351,1535.8,1535.3,30.36974927]
[1673882490035,6.51148,1535.8,1535.3,40.15581605]
[1673882490344,0.066,1535.8,1535.3,33.64253605]
[1673882490540,13.02268,1535.8,1535.3,33.64253605]
[1673882490722,15.04866,1535.8,1535.3,30.36974927]
[1673882492551,15.04866,1535.8,1535.3,36.88293927]
[1673882492916,21.56,1535.8,1535.3,36.88293927]
[1673882493169,21.56,1535.8,1535.3,30.36974927]
[1673882494443,22.51449941,1535.8,1535.3,30.36974927]
[1673882494783,19.53657,1535.6,1535.3,30.36974927]
[1673882494944,19.60257,1535.6,1535.3,0.05974927]
[1673882495152,19.60257,1535.6,1535.2,0.10872734]
[1673882495372,13.57918,1535.6,1535.2,0.10872734]
[1673882495582,0.5548,1535.6,1535.2,22.92275412]
[1673882495827,0.066,1535.7,1535.3,25.10505219]
[1673882496040,2.37251947,1535.8,1535.4,3.27278678]
[1673882496258,8.81778947,1535.8,1535.3,8.86525468]
[1673882496450,8.88378947,1535.8,1535.3,9.84576605]
[1673882496638,22.39542947,1535.8,1535.3,0.05974927]
[1673882496982,22.39542947,1535.8,1535.3,16.29950678]
[1673882496983,7.92931,1535.8,1535.3,16.29950678]
[1673882497195,0.066,1535.8,1535.3,16.35925605]
[1673882497408,6.51132,1535.8,1535.3,6.57308927]
[1673882497562,14.532869,1535.8,1535.3,0.05974927]
[1673882497776,21.044189,1535.8,1535.2,13.19553661]
[1673882498257,21.044189,1535.8,1535.2,0.16847661]
[1673882498258,0.95491893,1535.7,1535.2,0.16847661]
[1673882498413,19.5368,1535.6,1535.2,0.10872734]
[1673882498615,1.35,1535.5,1535.2,0.10872734]
[1673882498826,6.51296,1535.4,1535.2,0.10872734]
[1673882499042,6.57896,1535.4,1535.2,0.10872734]
[1673882499499,13.09192,1535.4,1535.2,0.10872734]
[1673882499724,0.066,1535.4,1535.2,0.10872734]
[1673882500032,16.8333305,1535.6,1535.2,0.10872734]
[1673882500242,20.81093632,1535.6,1535.2,0.10872734]
[1673882501135,19.85549905,1535.6,1535.2,0.10872734]
[1673882501393,14.92234,1535.6,1535.2,6.62252734]
[1673882501568,14.92234,1535.6,1535.2,6.68227661]
[1673882502653,14.43354,1535.6,1535.2,6.68227661]
[1673882503041,20.94603,1535.6,1535.2,0.16847661]
[1673882503289,20.94603,1535.6,1535.2,0.10872734]
[1673882503459,26.13491066,1535.6,1535.2,0.10872734]
[1673882504128,19.53888,1535.4,1535.2,0.10872734]
[1673882504458,19.60488,1535.4,1535.2,0.10872734]
[1673882505049,20.94488,1535.4,1535.2,0.10872734]
[1673882505411,20.09378,1535.4,1535.2,0.10872734]
[1673882505574,13.58082,1535.4,1535.2,0.10872734]
[1673882505782,13.09192,1535.4,1535.2,0.10872734]
[1673882506115,19.60488,1535.4,1535.2,0.10872734]
[1673882506323,21.8119799,1535.4,1535.2,0.10872734]
[1673882507093,0.066,1535.4,1535.2,0.10872734]
[1673882507260,6.513,1535.4,1535.2,0.10872734]
[1673882507476,19.605,1535.4,1535.2,0.10872734]
[1673882507700,20.0939,1535.4,1535.2,0.10872734]
[1673882507911,23.36668678,1535.4,1535.2,0.10872734]
[1673882508124,2.33666868,1535.3,1535.2,0.10872734]
[1673882508338,26.50159546,1535.3,1535.2,0.10872734]
[1673882508522,26.56759546,1535.3,1535.2,0.10872734]
[1673882508941,37.56759546,1535.3,1535.2,0.10872734]
[1673882509197,39.41049546,1535.3,1535.2,0.10872734]
[1673882509363,36.70449546,1535.3,1535.2,0.10872734]
[1673882510245,30.06049546,1535.3,1535.2,0.10872734]
[1673882511470,38.06049546,1535.3,1535.2,0.10872734]
[1673882513545,39.41649546,1535.3,1535.2,0.10872734]
[1673882514359,45.92987546,1535.3,1535.2,0.10872734]
[1673882515443,2.0,1535.2,1534.9,1.61654269]
[1673882515656,1.356,1535.0,1534.9,1.61654269]
[1673882515918,20.89995,1535.0,1534.9,1.61654269]
[1673882516276,20.96595,1535.0,1534.9,1.61654269]
[1673882518770,24.23873678,1535.0,1534.9,1.61654269]
[1673882518994,20.96595,1535.0,1534.9,1.61654269]
[1673882519230,23.733968,1535.0,1534.9,1.61654269]
[1673882519589,27.00675478,1535.0,1534.9,1.61654269]
[1673882525894,33.80075478,1535.0,1534.9,1.61654269]
[1673882526267,34.75585356,1535.0,1534.9,1.61654269]
[1673882526515,26.062,1534.8,1534.6,2.48577582]
[1673882526724,29.40078678,1534.8,1534.6,2.42602655]
[1673882527724,3.27278678,1534.7,1534.6,2.42602655]
[1673882527968,24.16457678,1534.7,1534.6,2.42602655]
[1673882528213,24.23057678,1534.7,1534.6,2.42602655]
[1673882528363,27.43998446,1534.7,1534.6,2.42602655]
[1673882529036,30.43998446,1534.7,1534.6,2.42602655]
[1673882531090,6.58193,1534.7,1534.6,2.42602655]
[1673882531993,0.066,1534.7,1534.6,2.42602655]
[1673882532200,0.064,1534.8,1534.7,0.96834589]
[1673882532418,6.5155,1534.8,1534.6,2.42602655]
[1673882532569,13.097,1534.8,1534.6,2.42602655]
[1673882532777,25.49803078,1534.8,1534.6,2.42602655]
[1673882533230,22.225244,1534.8,1534.6,2.42602655]
[1673882534613,25.49803078,1534.8,1534.6,2.42602655]
[1673882534829,26.85003078,1534.8,1534.6,2.42602655]
[1673882535436,27.80682924,1534.8,1534.6,2.42602655]
[1673882535661,2.78068292,1534.7,1534.6,2.42602655]
[1673882535820,25.6012597,1534.7,1534.6,2.42602655]
[1673882536028,35.0222597,1534.7,1534.6,2.42602655]
[1673882536242,38.97914304,1534.7,1534.6,2.42602655]
[1673882536711,30.97914304,1534.7,1534.6,2.42602655]
[1673882536935,30.0222597,1534.7,1534.5,3.56142666]
[1673882537245,13.58782002,1534.6,1534.5,3.50167739]
[1673882537434,28.6107389,1534.6,1534.5,3.50167739]
[1673882537939,27.1756771,1534.6,1534.5,3.50167739]
[1673882538149,29.9569724,1534.6,1534.5,3.50167739]
[1673882538344,31.87053562,1534.6,1534.5,3.50167739]
[1673882538554,38.66453562,1534.6,1534.5,3.50167739]
[1673882539092,2.0,1534.5,1534.4,1.66285913]
[1673882539288,19.17248745,1534.5,1534.4,1.60310986]
[1673882539501,43.99061103,1534.5,1534.4,1.60310986]
[1673882539771,44.94700949,1534.5,1534.4,1.60310986]
[1673882540080,43.51154591,1534.5,1534.4,1.60310986]
[1673882540970,24.41014745,1534.5,1534.4,1.60310986]
[1673882541180,7.93878,1534.5,1534.4,1.60310986]
[1673882541443,6.58278,1534.5,1534.4,1.60310986]
[1673882542447,13.09956,1534.5,1534.4,1.60310986]
[1673882542901,6.58278,1534.5,1534.4,1.60310986]
[1673882543303,6.03888,1534.5,1534.4,1.60310986]
[1673882543651,7.47307184,1534.8,1534.4,2.36367127]
[1673882543819,14.00086184,1534.8,1534.4,2.36367127]
[1673882544008,17.32764862,1534.8,1534.4,1.60310986]
[1673882544224,17.26237458,1534.7,1534.4,1.60310986]
[1673882544434,17.32837458,1534.7,1534.4,1.60310986]
[1673882544705,3.27278678,1534.6,1534.4,1.60310986]
[1673882545013,22.82312678,1534.5,1534.4,1.60310986]
[1673882545225,29.0654421,1534.5,1534.4,1.60310986]
[1673882546012,29.5545421,1534.5,1534.4,1.60310986]
[1673882546258,29.0654421,1534.5,1534.4,1.60310986]
[1673882546800,33.50198567,1534.5,1534.4,1.60310986]
[1673882546953,35.41709423,1534.5,1534.4,1.60310986]
[1673882547164,35.90619423,1534.5,1534.4,1.60310986]
[1673882547375,32.5545421,1534.5,1534.4,1.60310986]
[1673882547617,30.99094555,1534.5,1534.4,1.60310986]
[1673882548043,33.50184555,1534.5,1534.4,1.60310986]
[1673882548603,32.0654421,1534.5,1534.4,1.60310986]
[1673882548801,32.5545421,1534.5,1534.4,1.60310986]
[1673882549260,39.3485421,1534.5,1534.4,1.60310986]
[1673882549474,41.74250963,1534.5,1534.4,1.60310986]
[1673882549684,47.3485421,1534.5,1534.4,1.60310986]
[1673882549931,48.78445103,1534.5,1534.4,1.60310986]
[1673882550161,41.99045103,1534.5,1534.4,1.60310986]
[1673882550694,40.5545421,1534.5,1534.4,1.60310986]
[1673882551056,49.74190021,1534.5,1534.4,1.60310986]
[1673882551265,47.3485421,1534.5,1534.4,1.60310986]
[1673882551697,49.74172407,1534.5,1534.3,6.00250423]
[1673882551945,49.74172407,1534.5,1534.2,3.51227027]
[1673882551946,1.45146123,1534.3,1534.2,3.51227027]
[1673882552156,22.95400632,1534.3,1534.2,2.57567027]
[1673882552470,22.95400632,1534.3,1534.2,0.41847027]
[1673882552471,53.05831243,1534.3,1534.2,0.41847027]
[1673882552689,2.0,1534.2,1534.1,3.50807902]
[1673882552840,9.1532557,1534.2,1534.1,3.50807902]
[1673882553051,28.6953269,1534.2,1534.1,3.50807902]
[1673882553305,25.89293678,1534.2,1534.1,3.50807902]
[1673882554105,22.89293678,1534.2,1534.1,3.50807902]
[1673882555841,40.39793678,1534.2,1534.1,3.50807902]
[1673882556015,51.89160719,1534.2,1534.0,8.20541691]
[1673882556212,20.25165072,1534.1,1534.0,8.20741691]
[1673882556424,42.87306072,1534.1,1533.9,4.20438527]
[1673882556692,42.87306072,1534.1,1533.8,12.58629901]
[1673882556693,6.794,1533.9,1533.8,12.58629901]
[1673882556859,32.12306678,1533.9,1533.8,12.65229901]
[1673882557056,35.82348506,1533.9,1533.8,12.65229901]
[1673882557265,42.86692446,1533.9,1533.8,12.65229901]
[1673882557476,48.50798975,1533.9,1533.8,12.65229901]
[1673882557856,44.75578506,1533.9,1533.8,12.65229901]
[1673882557995,46.10478506,1533.9,1533.8,12.65229901]
[1673882558686,46.45907779,1533.9,1533.8,12.65229901]
[1673882559006,46.45907128,1533.9,1533.8,12.65229901]
[1673882559156,46.45907128,1533.9,1533.8,11.71569901]
[1673882559364,2.0,1533.8,1533.4,8.25353435]
[1673882559617,30.90582678,1533.7,1533.4,8.31953435]
[1673882559830,3.27278678,1533.6,1533.4,8.31953435]
[1673882560097,19.56309,1533.5,1533.4,8.31953435]
[1673882560428,19.62909,1533.5,1533.4,8.31953435]
[1673882560664,22.90187678,1533.5,1533.4,8.31953435]
[1673882560849,3.33878678,1533.5,1533.4,8.31953435]
[1673882561063,6.58665,1533.6,1533.4,8.31953435]
[1673882561412,3.33878678,1533.6,1533.4,8.31953435]
[1673882561623,6.58626,1533.7,1533.4,8.31953435]
[1673882561843,9.85904678,1533.7,1533.4,8.31953435]
[1673882562443,3.33878678,1533.7,1533.4,8.31953435]
[1673882562672,6.27278678,1533.6,1533.4,8.31953435]
[1673882562876,9.79381678,1533.5,1533.4,8.31953435]
[1673882563099,9.85981678,1533.5,1533.4,8.31953435]
[1673882563454,16.38084678,1533.5,1533.4,8.31953435]
[1673882563665,21.97100346,1533.5,1533.4,8.31953435]
[1673882565759,35.77553346,1533.5,1533.1,9.87789792]
[1673882566060,40.50274668,1533.5,1533.4,0.062]
[1673882566575,22.21924668,1533.5,1533.4,0.062]
[1673882566894,19.62909,1533.5,1533.4,0.062]
[1673882567692,26.42309,1533.5,1533.4,0.062]
[1673882568009,22.90187678,1533.5,1533.4,0.062]
[1673882568227,25.90187678,1533.5,1533.4,0.062]
[1673882568651,32.69587678,1533.5,1533.4,0.062]
[1673882568897,36.75263646,1533.5,1533.4,0.062]
[1673882569340,29.95863646,1533.5,1533.4,0.062]
[1673882569697,39.80413646,1533.5,1533.4,0.062]
[1673882570345,19.5669,1533.2,1533.1,9.94389792]
[1673882570557,22.90568678,1533.2,1533.1,9.94189792]
[1673882570846,6.5883,1533.2,1533.1,9.94189792]
[1673882570973,0.066,1533.2,1533.1,9.94189792]
[1673882571171,0.01189842,1533.3,1533.1,9.94189792]
[1673882571409,0.066,1533.6,1533.1,16.95422792]
[1673882571630,0.066,1533.7,1533.2,10.25987946]
[1673882571797,1.08024517,1534.2,1533.6,2.698]
[1673882572016,0.066,1534.3,1534.0,1.356]
[1673882572222,1.02024517,1534.4,1534.1,7.87447]
[1673882572544,0.95474239,1534.4,1534.1,0.064]
[1673882572758,8.49519116,1534.5,1534.0,1.8443]
[1673882573007,1.02363877,1534.5,1534.1,10.04567]
[1673882573213,0.95763877,1534.5,1534.1,10.10967]
[1673882573612,0.95763877,1534.5,1534.3,6.51763]
[1673882573836,0.95763877,1534.5,1534.3,6.58163]
[1673882574029,0.95763877,1534.5,1534.3,0.064]
[1673882574235,2.03316387,1534.2,1534.1,0.1404]
[1673882574487,0.96116387,1534.2,1534.0,0.1405]
[1673882574815,11.20559574,1534.5,1534.0,0.1405]
[1673882574816,7.63622265,1534.5,1534.0,0.1405]
[1673882575160,7.63622265,1534.5,1533.9,3.4835]
[1673882575841,1.02363877,1534.5,1534.0,2.0]
[1673882576049,0.95763877,1534.5,1534.1,1.356]
[1673882576424,3.27278678,1534.4,1534.1,1.356]
[1673882576636,3.27278678,1534.3,1533.9,0.066]
[1673882576845,3.27278678,1534.3,1533.7,9.87611]
[1673882576846,9.79091678,1534.2,1533.7,0.066]
[1673882577183,9.79091678,1534.2,1533.7,6.52013]
[1673882577184,1.79241799,1534.2,1533.7,6.52013]
[1673882577360,3.27278678,1534.2,1533.7,0.064]